[Event "*** Titled Tuesday Blitz"]
[Site "Chess.com"]
[Date "2019.06.04"]
[Round "6"]
[White "Blitzstream"]
[Black "VladDobrov"]
[Result "1-0"]
[WhiteElo "2698"]
[BlackElo "2820"]
[TimeControl "180+2"]
[EndTime "14:19:25 PDT"]
[Termination "Blitzstream won by resignation"]

1. d4 {[%clk 0:03:01.9]} 1... Nf6 {[%clk 0:03:00.5]} 2. Bg5 {[%clk 0:03:02.4]}
2... d5 {[%clk 0:02:59.4]} 3. e3 {[%clk 0:03:01.4]} 3... c5 {[%clk 0:02:41.3]}
4. c3 {[%clk 0:03:02.1]} 4... e6 {[%clk 0:02:40.3]} 5. Nf3 {[%clk 0:03:00.4]}
5... Be7 {[%clk 0:02:38.6]} 6. Nbd2 {[%clk 0:03:00]} 6... Nc6 {[%clk 0:02:35.7]}
7. Bd3 {[%clk 0:02:59.6]} 7... h6 {[%clk 0:02:29]} 8. Bh4 {[%clk 0:02:55.3]}
8... Nh5 {[%clk 0:02:27.9]} 9. Bxe7 {[%clk 0:02:48.5]} 9... Qxe7 {[%clk
0:02:29.8]} 10. Ne5 {[%clk 0:02:16.7]} 10... Nf6 {[%clk 0:02:24.8]} 11. f4
{[%clk 0:02:01]} 11... Bd7 {[%clk 0:02:19.9]} 12. Qf3 {[%clk 0:01:52.6]} 12...
O-O-O {[%clk 0:02:18.7]} 13. O-O-O {[%clk 0:01:46.1]} 13... Kb8 {[%clk
0:02:19.3]} 14. Kb1 {[%clk 0:01:46.9]} 14... Rc8 {[%clk 0:02:20.3]} 15. g4
{[%clk 0:01:45]} 15... Rc7 {[%clk 0:01:53.3]} 16. h4 {[%clk 0:01:31]} 16... Ne8
{[%clk 0:01:31.5]} 17. g5 {[%clk 0:01:23.3]} 17... h5 {[%clk 0:01:26.1]} 18. g6
{[%clk 0:01:24.2]} 18... Nxe5 {[%clk 0:01:01.7]} 19. fxe5 {[%clk 0:01:23.7]}
19... f5 {[%clk 0:01:01.2]} 20. Rdg1 {[%clk 0:01:19.3]} 20... cxd4 {[%clk
0:00:59.6]} 21. exd4 {[%clk 0:01:14.4]} 21... b5 {[%clk 0:00:45.6]} 22. Nb3
{[%clk 0:01:07.2]} 22... b4 {[%clk 0:00:46.6]} 23. Nc5 {[%clk 0:00:40.2]} 23...
bxc3 {[%clk 0:00:47.8]} 24. bxc3 {[%clk 0:00:28.6]} 24... Ka8 {[%clk 0:00:48.1]}
25. Ka1 {[%clk 0:00:28.2]} 25... Rxc5 {[%clk 0:00:49.5]} 26. dxc5 {[%clk
0:00:29]} 26... Qxc5 {[%clk 0:00:51.4]} 27. Be2 {[%clk 0:00:17.5]} 27... Nc7
{[%clk 0:00:52.2]} 28. Rb1 {[%clk 0:00:18.1]} 28... Bb5 {[%clk 0:00:48.4]} 29.
Rhc1 {[%clk 0:00:16.3]} 29... Bxe2 {[%clk 0:00:42.8]} 30. Qxe2 {[%clk
0:00:18.2]} 30... f4 {[%clk 0:00:36.1]} 31. Qb2 {[%clk 0:00:18.5]} 31... Qc6
{[%clk 0:00:36.9]} 32. c4 {[%clk 0:00:19.8]} 32... d4 {[%clk 0:00:34.7]} 33.
Qxd4 {[%clk 0:00:19.4]} 33... f3 {[%clk 0:00:35]} 34. Qd6 {[%clk 0:00:20.2]}
34... Qe4 {[%clk 0:00:29.2]} 35. Qxc7 {[%clk 0:00:17.4]} 35... f2 {[%clk
0:00:30.7]} 36. c5 {[%clk 0:00:06.1]} 36... Qd4+ {[%clk 0:00:11.3]} 37. Rb2
{[%clk 0:00:07]} 37... Qd5 {[%clk 0:00:04]} 38. c6 {[%clk 0:00:06.4]} 1-0

[Event "*** Titled Tuesday Blitz"]
[Site "Chess.com"]
[Date "2019.06.04"]
[Round "6"]
[White "Kawhi_Leonard2"]
[Black "NicoChasin"]
[Result "1-0"]
[WhiteElo "2281"]
[BlackElo "2475"]
[TimeControl "180+2"]
[EndTime "14:19:26 PDT"]
[Termination "Kawhi_Leonard2 won by resignation"]

1. e4 {[%clk 0:03:01.9]} 1... c5 {[%clk 0:02:59.7]} 2. Nf3 {[%clk 0:03:02.8]}
2... e6 {[%clk 0:03:00.3]} 3. d4 {[%clk 0:03:04.4]} 3... cxd4 {[%clk 0:03:02.1]}
4. Nxd4 {[%clk 0:03:06]} 4... Nc6 {[%clk 0:03:03.6]} 5. Nc3 {[%clk 0:03:07.4]}
5... Qc7 {[%clk 0:03:04.5]} 6. Be2 {[%clk 0:03:08.7]} 6... a6 {[%clk 0:03:01.2]}
7. O-O {[%clk 0:03:09.6]} 7... Nf6 {[%clk 0:03:02.2]} 8. Be3 {[%clk 0:03:11.1]}
8... d6 {[%clk 0:03:01.6]} 9. f4 {[%clk 0:03:09.9]} 9... Bd7 {[%clk 0:03:02]}
10. Kh1 {[%clk 0:03:11]} 10... b5 {[%clk 0:03:02.5]} 11. Nxc6 {[%clk 0:03:08.1]}
11... Bxc6 {[%clk 0:03:02.9]} 12. Bf3 {[%clk 0:02:40.2]} 12... b4 {[%clk
0:02:59.7]} 13. e5 {[%clk 0:02:41.4]} 13... bxc3 {[%clk 0:02:56.2]} 14. exf6
{[%clk 0:02:41.9]} 14... cxb2 {[%clk 0:02:57.2]} 15. Rb1 {[%clk 0:02:38.8]}
15... gxf6 {[%clk 0:02:58.1]} 16. Rxb2 {[%clk 0:02:39.9]} 16... Be7 {[%clk
0:02:58.8]} 17. Rb6 {[%clk 0:02:30.8]} 17... Bxf3 {[%clk 0:02:49.7]} 18. Qxf3
{[%clk 0:02:31]} 18... O-O {[%clk 0:02:49.1]} 19. Rb7 {[%clk 0:02:26.8]} 19...
Qd8 {[%clk 0:02:50.1]} 20. Qh5 {[%clk 0:02:22.3]} 20... Rb8 {[%clk 0:02:46]} 21.
Rxb8 {[%clk 0:01:51.1]} 21... Qxb8 {[%clk 0:02:44.4]} 22. f5 {[%clk 0:01:53]}
22... Kh8 {[%clk 0:02:41.9]} 23. Bh6 {[%clk 0:01:52.4]} 23... Rg8 {[%clk
0:02:35.9]} 24. Qxf7 {[%clk 0:01:53.3]} 24... Qb7 {[%clk 0:02:20.3]} 25. Rg1
{[%clk 0:01:33.9]} 25... exf5 {[%clk 0:02:21.1]} 26. c4 {[%clk 0:01:13.5]} 26...
Qe4 {[%clk 0:02:20.4]} 27. Bc1 {[%clk 0:00:58.3]} 27... Rf8 {[%clk 0:02:02.2]}
28. Qd5 {[%clk 0:00:52]} 28... Qxd5 {[%clk 0:02:01.6]} 29. cxd5 {[%clk
0:00:53.2]} 29... Rc8 {[%clk 0:02:02.6]} 30. Bh6 {[%clk 0:00:46.5]} 30... Kg8
{[%clk 0:02:00.9]} 31. g3 {[%clk 0:00:36.1]} 31... Rc2 {[%clk 0:01:48.5]} 32.
Rb1 {[%clk 0:00:29.5]} 32... Rxa2 {[%clk 0:01:44.7]} 33. Rb7 {[%clk 0:00:29.6]}
33... Kf7 {[%clk 0:01:45.5]} 34. Bf4 {[%clk 0:00:27.1]} 34... Ke8 {[%clk
0:01:38.9]} 35. Rb8+ {[%clk 0:00:24]} 35... Kd7 {[%clk 0:01:39]} 36. Rh8 {[%clk
0:00:21]} 36... Ra5 {[%clk 0:01:38.6]} 37. Rxh7 {[%clk 0:00:21.3]} 37... Rxd5
{[%clk 0:01:40.2]} 38. h4 {[%clk 0:00:22.2]} 38... a5 {[%clk 0:01:41.3]} 39. Rh8
{[%clk 0:00:23]} 39... Ke6 {[%clk 0:01:34.4]} 40. Ra8 {[%clk 0:00:23.6]} 40...
Kf7 {[%clk 0:01:34.5]} 41. Ra7 {[%clk 0:00:23.9]} 41... Ke6 {[%clk 0:01:24.1]}
42. h5 {[%clk 0:00:23.6]} 42... Rd1+ {[%clk 0:01:22.7]} 43. Kg2 {[%clk 0:00:24]}
43... Re1 {[%clk 0:01:23.7]} 44. h6 {[%clk 0:00:21.6]} 44... Kf7 {[%clk
0:01:21.9]} 45. h7 {[%clk 0:00:21.4]} 45... Kg7 {[%clk 0:01:18.4]} 46. Bxd6
{[%clk 0:00:22.2]} 46... Kxh7 {[%clk 0:01:06.5]} 47. Rxe7+ {[%clk 0:00:22.1]}
47... Rxe7 {[%clk 0:01:04.8]} 48. Bxe7 {[%clk 0:00:23.1]} 48... Kg6 {[%clk
0:01:05.9]} 49. Kf3 {[%clk 0:00:24.2]} 49... Kg5 {[%clk 0:01:02.8]} 50. Ba3
{[%clk 0:00:23.9]} 50... a4 {[%clk 0:01:03.6]} 51. Bc1+ {[%clk 0:00:24.9]} 51...
f4 {[%clk 0:01:01.7]} 52. gxf4+ {[%clk 0:00:20.6]} 52... Kf5 {[%clk 0:01:02.8]}
53. Ba3 {[%clk 0:00:21]} 53... Ke6 {[%clk 0:01:02.1]} 54. Ke4 {[%clk 0:00:22.1]}
54... Kf7 {[%clk 0:01:01.9]} 55. f5 {[%clk 0:00:21.9]} 55... Kg7 {[%clk
0:01:02.5]} 56. Kd5 {[%clk 0:00:23.3]} 56... Kh6 {[%clk 0:01:03.5]} 57. Ke6
{[%clk 0:00:24.6]} 57... Kg5 {[%clk 0:01:04.6]} 58. Be7 {[%clk 0:00:24.8]} 1-0

[Event "*** Titled Tuesday Blitz"]
[Site "Chess.com"]
[Date "2019.06.04"]
[Round "6"]
[White "guillembaches"]
[Black "vinniethepooh"]
[Result "0-1"]
[WhiteElo "2287"]
[BlackElo "2574"]
[TimeControl "180+2"]
[EndTime "14:19:28 PDT"]
[Termination "vinniethepooh won on time"]

1. e4 {[%clk 0:03:01.9]} 1... c5 {[%clk 0:03:00.6]} 2. Nf3 {[%clk 0:03:02.5]}
2... d6 {[%clk 0:03:02]} 3. d4 {[%clk 0:03:03.6]} 3... cxd4 {[%clk 0:03:03.9]}
4. Qxd4 {[%clk 0:03:04.8]} 4... Nc6 {[%clk 0:03:03.6]} 5. Qe3 {[%clk 0:03:05.3]}
5... Nf6 {[%clk 0:03:03.5]} 6. Be2 {[%clk 0:03:03.4]} 6... e6 {[%clk 0:02:59.7]}
7. c4 {[%clk 0:03:03.2]} 7... Be7 {[%clk 0:02:53.7]} 8. Nc3 {[%clk 0:03:03.7]}
8... O-O {[%clk 0:02:49.1]} 9. O-O {[%clk 0:03:04.4]} 9... Ng4 {[%clk
0:02:33.4]} 10. Qd2 {[%clk 0:02:53.7]} 10... Nge5 {[%clk 0:02:33.7]} 11. b3
{[%clk 0:02:51]} 11... Nxf3+ {[%clk 0:02:14.5]} 12. Bxf3 {[%clk 0:02:51.6]}
12... f5 {[%clk 0:02:14.8]} 13. Bb2 {[%clk 0:02:39.9]} 13... Ne5 {[%clk
0:02:08.5]} 14. Be2 {[%clk 0:02:35.5]} 14... f4 {[%clk 0:02:09.4]} 15. f3 {[%clk
0:02:31.7]} 15... a6 {[%clk 0:01:56.9]} 16. Na4 {[%clk 0:02:27.5]} 16... Qe8
{[%clk 0:01:29.7]} 17. c5 {[%clk 0:02:14.3]} 17... Nf7 {[%clk 0:01:01.1]} 18.
Nb6 {[%clk 0:01:32.9]} 18... Rb8 {[%clk 0:00:49.8]} 19. cxd6 {[%clk 0:01:30.2]}
19... Bxd6 {[%clk 0:00:48.3]} 20. Bc4 {[%clk 0:01:23]} 20... Bc5+ {[%clk
0:00:40.9]} 21. Kh1 {[%clk 0:01:02.6]} 21... Bxb6 {[%clk 0:00:40.6]} 22. Qxf4
{[%clk 0:00:57]} 22... Bd7 {[%clk 0:00:25.2]} 23. Rad1 {[%clk 0:00:48.6]} 23...
Kh8 {[%clk 0:00:19.5]} 24. Qg3 {[%clk 0:00:44.1]} 24... e5 {[%clk 0:00:19.1]}
25. Bxf7 {[%clk 0:00:20.7]} 25... Rxf7 {[%clk 0:00:21]} 26. Bxe5 {[%clk
0:00:20.5]} 26... Rc8 {[%clk 0:00:22.3]} 27. Rd2 {[%clk 0:00:20.3]} 27... Be6
{[%clk 0:00:19]} 28. Rfd1 {[%clk 0:00:20.9]} 28... h6 {[%clk 0:00:06.3]} 29. h3
{[%clk 0:00:21.4]} 29... Kh7 {[%clk 0:00:07.3]} 30. Qh4 {[%clk 0:00:21.5]} 30...
Bc7 {[%clk 0:00:07.8]} 31. Bb2 {[%clk 0:00:19.7]} 31... Bf4 {[%clk 0:00:07.8]}
32. Rd8 {[%clk 0:00:18.8]} 32... Rxd8 {[%clk 0:00:08.8]} 33. Rxd8 {[%clk
0:00:19.4]} 33... Qc6 {[%clk 0:00:09.5]} 34. Qe1 {[%clk 0:00:12.1]} 34... Qc2
{[%clk 0:00:09.5]} 35. Bc3 {[%clk 0:00:06.8]} 35... Bxh3 {[%clk 0:00:09.4]} 0-1

[Event "*** Titled Tuesday Blitz"]
[Site "Chess.com"]
[Date "2019.06.04"]
[Round "6"]
[White "DanielMieles1985"]
[Black "slowdumbb"]
[Result "1-0"]
[WhiteElo "2643"]
[BlackElo "2450"]
[TimeControl "180+2"]
[EndTime "14:19:29 PDT"]
[Termination "DanielMieles1985 won by resignation"]

1. d4 {[%clk 0:03:01.9]} 1... Nf6 {[%clk 0:02:57.8]} 2. c4 {[%clk 0:03:01.1]}
2... g6 {[%clk 0:02:59]} 3. Nc3 {[%clk 0:03:01.4]} 3... d5 {[%clk 0:03:00.1]} 4.
Nf3 {[%clk 0:03:02]} 4... Bg7 {[%clk 0:03:00.8]} 5. Qb3 {[%clk 0:03:03.3]} 5...
dxc4 {[%clk 0:02:57.8]} 6. Qxc4 {[%clk 0:03:04.6]} 6... O-O {[%clk 0:02:57.9]}
7. e4 {[%clk 0:03:05.5]} 7... c6 {[%clk 0:02:42.3]} 8. Be2 {[%clk 0:03:04.9]}
8... Nbd7 {[%clk 0:02:18.4]} 9. O-O {[%clk 0:03:01.7]} 9... Nb6 {[%clk
0:02:19.4]} 10. Qb3 {[%clk 0:03:01.5]} 10... Be6 {[%clk 0:02:19.9]} 11. Qc2
{[%clk 0:03:02.1]} 11... Bc4 {[%clk 0:02:20.7]} 12. Rd1 {[%clk 0:02:57.8]} 12...
Bxe2 {[%clk 0:02:20.8]} 13. Qxe2 {[%clk 0:02:59.7]} 13... Qc7 {[%clk 0:02:20.6]}
14. h3 {[%clk 0:02:59.6]} 14... Rad8 {[%clk 0:02:18.4]} 15. Be3 {[%clk
0:03:00.4]} 15... Nh5 {[%clk 0:01:57.6]} 16. a4 {[%clk 0:02:57.9]} 16... e5
{[%clk 0:01:54.2]} 17. a5 {[%clk 0:02:52.7]} 17... Nc8 {[%clk 0:01:49.2]} 18.
dxe5 {[%clk 0:02:47.8]} 18... Bxe5 {[%clk 0:01:44.4]} 19. Nxe5 {[%clk
0:02:48.1]} 19... Qxe5 {[%clk 0:01:46.3]} 20. a6 {[%clk 0:02:39.1]} 20... b6
{[%clk 0:01:40.6]} 21. Qc4 {[%clk 0:02:34.8]} 21... Ne7 {[%clk 0:01:32.3]} 22.
Rd4 {[%clk 0:02:08.7]} 22... Nf4 {[%clk 0:01:00.4]} 23. Rad1 {[%clk 0:02:03.5]}
23... Rxd4 {[%clk 0:00:21.6]} 24. Qxd4 {[%clk 0:01:59.7]} 24... Qg5 {[%clk
0:00:22.5]} 25. g3 {[%clk 0:01:48.5]} 25... Nxh3+ {[%clk 0:00:23]} 26. Kg2
{[%clk 0:01:49.8]} 26... Qg4 {[%clk 0:00:19.8]} 27. f3 {[%clk 0:01:38.4]} 27...
Qe6 {[%clk 0:00:19.7]} 28. Qd7 {[%clk 0:01:32.8]} 28... Nf5 {[%clk 0:00:15.8]}
29. exf5 {[%clk 0:01:23.8]} 29... Qxe3 {[%clk 0:00:15]} 30. Kxh3 {[%clk
0:01:20.7]} 30... Qxf3 {[%clk 0:00:15.7]} 31. Qd3 {[%clk 0:01:14.3]} 31... Qh5+
{[%clk 0:00:11.5]} 32. Kg2 {[%clk 0:01:15.3]} 32... Qg4 {[%clk 0:00:09.1]} 33.
Re1 {[%clk 0:01:06.5]} 33... h5 {[%clk 0:00:07.9]} 34. Qf3 {[%clk 0:00:45.6]}
34... Qb4 {[%clk 0:00:06.7]} 35. Re2 {[%clk 0:00:41.8]} 35... Kg7 {[%clk
0:00:05.8]} 36. f6+ {[%clk 0:00:42.4]} 36... Kh7 {[%clk 0:00:06.6]} 37. Ne4
{[%clk 0:00:43.7]} 37... Rd8 {[%clk 0:00:06.3]} 38. Ng5+ {[%clk 0:00:40.3]}
38... Kg8 {[%clk 0:00:05.9]} 39. Qe4 {[%clk 0:00:32.1]} 39... Qc5 {[%clk
0:00:04.7]} 40. Qe8+ {[%clk 0:00:24.2]} 40... Rxe8 {[%clk 0:00:04.5]} 41. Rxe8+
{[%clk 0:00:25.5]} 41... Qf8 {[%clk 0:00:04.3]} 42. Rxf8+ {[%clk 0:00:26.6]}
42... Kxf8 {[%clk 0:00:06.2]} 43. Kf3 {[%clk 0:00:27.8]} 43... Ke8 {[%clk
0:00:07]} 44. Ke4 {[%clk 0:00:29.1]} 44... Kd7 {[%clk 0:00:08.5]} 45. Ke5 {[%clk
0:00:30.6]} 1-0

[Event "*** Titled Tuesday Blitz"]
[Site "Chess.com"]
[Date "2019.06.04"]
[Round "6"]
[White "gena217"]
[Black "temus_galaktionov"]
[Result "1/2-1/2"]
[WhiteElo "2902"]
[BlackElo "2714"]
[TimeControl "180+2"]
[EndTime "14:19:31 PDT"]
[Termination "Game drawn by agreement"]

1. e4 {[%clk 0:03:01.9]} 1... c6 {[%clk 0:03:01.4]} 2. d4 {[%clk 0:03:02.4]}
2... g6 {[%clk 0:03:02]} 3. c4 {[%clk 0:03:02.1]} 3... Bg7 {[%clk 0:03:03]} 4.
Nc3 {[%clk 0:03:02.8]} 4... d6 {[%clk 0:02:59.1]} 5. Be3 {[%clk 0:03:02.7]} 5...
Nd7 {[%clk 0:03:00]} 6. f4 {[%clk 0:03:01.9]} 6... e5 {[%clk 0:03:00.9]} 7. dxe5
{[%clk 0:03:00.1]} 7... dxe5 {[%clk 0:03:00.8]} 8. f5 {[%clk 0:03:00.6]} 8...
Ngf6 {[%clk 0:02:56.9]} 9. Nf3 {[%clk 0:02:44.9]} 9... O-O {[%clk 0:02:56.1]}
10. Nd2 {[%clk 0:02:45.9]} 10... Qa5 {[%clk 0:02:38.7]} 11. Be2 {[%clk
0:02:44.8]} 11... Nc5 {[%clk 0:02:37.3]} 12. O-O {[%clk 0:02:45.4]} 12... h6
{[%clk 0:02:18.4]} 13. a3 {[%clk 0:02:37.5]} 13... Na6 {[%clk 0:02:18.3]} 14. b4
{[%clk 0:02:35.3]} 14... Qc7 {[%clk 0:02:18.9]} 15. c5 {[%clk 0:02:35.1]} 15...
b5 {[%clk 0:02:15.6]} 16. Qb3 {[%clk 0:02:22.3]} 16... Rb8 {[%clk 0:02:15.1]}
17. fxg6 {[%clk 0:02:22.8]} 17... Be6 {[%clk 0:02:14.5]} 18. gxf7+ {[%clk
0:02:21.5]} 18... Qxf7 {[%clk 0:02:12.6]} 19. Qc2 {[%clk 0:02:22.5]} 19... Qg6
{[%clk 0:02:13.5]} 20. Nf3 {[%clk 0:02:20.2]} 20... Ng4 {[%clk 0:02:10]} 21. Bd2
{[%clk 0:02:20.7]} 21... Qh5 {[%clk 0:02:04.6]} 22. h3 {[%clk 0:02:20.4]} 22...
Nf6 {[%clk 0:02:00.2]} 23. Ng5 {[%clk 0:02:11.8]} 23... Qe8 {[%clk 0:02:01.1]}
24. Nxe6 {[%clk 0:02:12.7]} 24... Qxe6 {[%clk 0:02:01.9]} 25. Rf5 {[%clk
0:02:04.5]} 25... Nh7 {[%clk 0:01:47.8]} 26. Bg4 {[%clk 0:02:00.1]} 26... Rxf5
{[%clk 0:01:48]} 27. exf5 {[%clk 0:02:00.6]} 27... Qc4 {[%clk 0:01:43.7]} 28.
Qe4 {[%clk 0:02:01]} 28... Qd4+ {[%clk 0:01:36.7]} 29. Qxd4 {[%clk 0:02:00]}
29... exd4 {[%clk 0:01:36.5]} 30. Ne4 {[%clk 0:02:01.1]} 30... Nf6 {[%clk
0:01:32.2]} 31. Nxf6+ {[%clk 0:02:01.4]} 31... Bxf6 {[%clk 0:01:33.4]} 32. Bf3
{[%clk 0:02:03]} 32... Re8 {[%clk 0:01:29.1]} 33. Re1 {[%clk 0:02:01.6]} 33...
Rxe1+ {[%clk 0:01:29.3]} 34. Bxe1 {[%clk 0:02:03.5]} 34... Nb8 {[%clk
0:01:29.8]} 35. Bg3 {[%clk 0:02:03.9]} 35... Nd7 {[%clk 0:01:25.6]} 36. Bxc6
{[%clk 0:02:04.4]} 36... d3 {[%clk 0:01:23.7]} 37. Kf1 {[%clk 0:01:57]} 37...
Be5 {[%clk 0:01:15.7]} 38. Bxd7 {[%clk 0:01:53.6]} 38... Bxg3 {[%clk 0:01:15.7]}
39. Bxb5 {[%clk 0:01:55.2]} 39... d2 {[%clk 0:01:16.8]} 40. Ke2 {[%clk
0:01:56.6]} 40... Bf4 {[%clk 0:01:17.3]} 41. Bc4+ {[%clk 0:01:56.8]} 41... Kf8
{[%clk 0:01:18.3]} 42. b5 {[%clk 0:01:57]} 42... Ke7 {[%clk 0:01:18.4]} 43. g4
{[%clk 0:01:55.9]} 43... Kf6 {[%clk 0:01:14.2]} 44. c6 {[%clk 0:01:53]} 44...
Ke7 {[%clk 0:01:11.1]} 45. a4 {[%clk 0:01:54]} 45... Kf6 {[%clk 0:01:00.2]} 46.
Bb3 {[%clk 0:01:53.9]} 46... Ke7 {[%clk 0:00:56]} 47. a5 {[%clk 0:01:54.4]}
47... Kd6 {[%clk 0:00:56.6]} 48. Kf3 {[%clk 0:01:48.7]} 48... Bg5 {[%clk
0:00:55.4]} 49. Ba4 {[%clk 0:01:39.4]} 49... Bd8 {[%clk 0:00:50.2]} 50. a6
{[%clk 0:01:37.4]} 50... Kc7 {[%clk 0:00:42.8]} 51. Bd1 {[%clk 0:01:33.5]} 51...
Kb6 {[%clk 0:00:41.5]} 52. Be2 {[%clk 0:01:35.1]} 52... d1=Q {[%clk 0:00:42.3]}
53. Bxd1 {[%clk 0:01:36.3]} 53... Kxb5 {[%clk 0:00:43.6]} 54. Be2+ {[%clk
0:01:38.2]} 54... Kxc6 {[%clk 0:00:44.6]} 55. Ke4 {[%clk 0:01:38.2]} 55... Kd6
{[%clk 0:00:45.9]} 56. Bb5 {[%clk 0:01:35.3]} 56... Bg5 {[%clk 0:00:45.8]} 57.
Kf3 {[%clk 0:01:36.2]} 57... Ke5 {[%clk 0:00:46.1]} 58. Kg3 {[%clk 0:01:37.7]}
58... Bf4+ {[%clk 0:00:47.2]} 59. Kh4 {[%clk 0:01:39.3]} 59... Kf6 {[%clk
0:00:45.4]} 60. Kh5 {[%clk 0:01:40.2]} 60... Bg5 {[%clk 0:00:43.5]} 61. h4
{[%clk 0:01:41.6]} 61... Bf4 {[%clk 0:00:44.5]} 62. Be2 {[%clk 0:01:36.9]} 62...
Be3 {[%clk 0:00:45]} 63. Bd3 {[%clk 0:01:37.5]} 63... Bf4 {[%clk 0:00:45.3]} 64.
Be4 {[%clk 0:01:39.1]} 64... Be3 {[%clk 0:00:46.4]} 65. Bb7 {[%clk 0:01:39.4]}
65... Bf4 {[%clk 0:00:47.4]} 66. g5+ {[%clk 0:01:38]} 66... hxg5 {[%clk
0:00:48.1]} 67. hxg5+ {[%clk 0:01:39.9]} 67... Bxg5 {[%clk 0:00:49.3]} 68. Kg4
{[%clk 0:01:41.8]} 68... Be3 {[%clk 0:00:50.3]} 69. Kf3 {[%clk 0:01:43.7]} 69...
Bb6 {[%clk 0:00:50.8]} 70. Ke4 {[%clk 0:01:45.6]} 70... Bc7 {[%clk 0:00:51.9]}
71. Kd5 {[%clk 0:01:47.5]} 71... Kxf5 {[%clk 0:00:51.9]} 72. Kc6 {[%clk
0:01:49.4]} 72... Bb6 {[%clk 0:00:53.1]} 73. Kd7 {[%clk 0:01:50.8]} 73... Ke5
{[%clk 0:00:53.9]} 74. Kc8 {[%clk 0:01:51.3]} 1/2-1/2

[Event "*** Titled Tuesday Blitz"]
[Site "Chess.com"]
[Date "2019.06.04"]
[Round "6"]
[White "levallem"]
[Black "Spring199"]
[Result "0-1"]
[WhiteElo "2263"]
[BlackElo "2222"]
[TimeControl "180+2"]
[EndTime "14:19:31 PDT"]
[Termination "Spring199 won by checkmate"]

1. d4 {[%clk 0:01:12.4]} 1... Nf6 {[%clk 0:02:57.1]} 2. c4 {[%clk 0:01:12.4]}
2... e6 {[%clk 0:02:57.6]} 3. Nc3 {[%clk 0:01:13.6]} 3... Bb4 {[%clk 0:02:57.8]}
4. e3 {[%clk 0:01:13.2]} 4... d5 {[%clk 0:02:55.6]} 5. Bd3 {[%clk 0:01:13.8]}
5... O-O {[%clk 0:02:54.2]} 6. Ne2 {[%clk 0:01:14.4]} 6... c5 {[%clk 0:02:54.8]}
7. O-O {[%clk 0:01:12.3]} 7... cxd4 {[%clk 0:02:53.3]} 8. exd4 {[%clk
0:01:12.9]} 8... dxc4 {[%clk 0:02:53.8]} 9. Bxc4 {[%clk 0:01:14.8]} 9... b6
{[%clk 0:02:54.7]} 10. Bg5 {[%clk 0:01:15.2]} 10... Bb7 {[%clk 0:02:54.2]} 11.
Rc1 {[%clk 0:01:11.8]} 11... Be7 {[%clk 0:02:51]} 12. Bd3 {[%clk 0:01:03.1]}
12... h6 {[%clk 0:02:47]} 13. Bh4 {[%clk 0:01:00.6]} 13... Nc6 {[%clk
0:02:46.8]} 14. Bb1 {[%clk 0:00:59]} 14... Re8 {[%clk 0:02:25.6]} 15. a3 {[%clk
0:00:58.5]} 15... Rc8 {[%clk 0:02:15.1]} 16. Qd3 {[%clk 0:00:58.7]} 16... Na5
{[%clk 0:02:14.8]} 17. Rfd1 {[%clk 0:00:44.8]} 17... Nc4 {[%clk 0:02:12.1]} 18.
Qc2 {[%clk 0:00:19.7]} 18... Nd6 {[%clk 0:02:04.7]} 19. Bxf6 {[%clk 0:00:19.4]}
19... Bxf6 {[%clk 0:02:04.8]} 20. Qh7+ {[%clk 0:00:21.3]} 20... Kf8 {[%clk
0:02:05.4]} 21. Rd3 {[%clk 0:00:18]} 21... Ke7 {[%clk 0:01:54.5]} 22. Re3 {[%clk
0:00:15.9]} 22... Rh8 {[%clk 0:01:48.6]} 23. Qc2 {[%clk 0:00:15.5]} 23... Nc4
{[%clk 0:01:45.9]} 24. Rg3 {[%clk 0:00:15.3]} 24... Nd6 {[%clk 0:01:41.7]} 25.
Qd1 {[%clk 0:00:14.2]} 25... h5 {[%clk 0:01:34]} 26. d5 {[%clk 0:00:15.3]} 26...
e5 {[%clk 0:01:32.9]} 27. f4 {[%clk 0:00:15.2]} 27... exf4 {[%clk 0:01:25.9]}
28. Nxf4 {[%clk 0:00:17.1]} 28... h4 {[%clk 0:01:13.7]} 29. Re3+ {[%clk
0:00:17.8]} 29... Kf8 {[%clk 0:01:14.3]} 30. Qf3 {[%clk 0:00:18.1]} 30... Qd7
{[%clk 0:01:06.3]} 31. Kh1 {[%clk 0:00:18.8]} 31... Re8 {[%clk 0:01:05.6]} 32.
Rce1 {[%clk 0:00:19.7]} 32... Rxe3 {[%clk 0:01:04.1]} 33. Qxe3 {[%clk
0:00:21.2]} 33... Nc4 {[%clk 0:01:00.4]} 34. Qc1 {[%clk 0:00:21.3]} 34... h3
{[%clk 0:00:54.3]} 35. Be4 {[%clk 0:00:21.7]} 35... hxg2+ {[%clk 0:00:54.3]} 36.
Bxg2 {[%clk 0:00:23.6]} 36... Qg4 {[%clk 0:00:51.1]} 37. h3 {[%clk 0:00:22.3]}
37... Qg3 {[%clk 0:00:49.9]} 38. b3 {[%clk 0:00:23.2]} 38... Bxc3 {[%clk
0:00:46.8]} 39. Rf1 {[%clk 0:00:23.3]} 39... Nd2 {[%clk 0:00:37.4]} 40. Ne6+
{[%clk 0:00:20.5]} 40... Ke7 {[%clk 0:00:35.9]} 41. Re1 {[%clk 0:00:20.3]} 41...
fxe6 {[%clk 0:00:30.4]} 42. Rxe6+ {[%clk 0:00:22.2]} 42... Kd7 {[%clk
0:00:31.1]} 43. Qc2 {[%clk 0:00:21.5]} 43... Rxh3+ {[%clk 0:00:31.5]} 44. Kg1
{[%clk 0:00:18.5]} 44... Bd4+ {[%clk 0:00:31.6]} 45. Re3 {[%clk 0:00:17.6]}
45... Qxe3# {[%clk 0:00:31.6]} 0-1